[Event "Live Chess"]
[Site "Chess.com"]
[Date "2023.05.20"]
[Round "-"]
[White "vinni3012"]
[Black "lucaskk818"]
[Result "1-0"]
[WhiteElo "1867"]
[BlackElo "1866"]
[TimeControl "300"]
[EndTime "9:10:17 PDT"]
[Termination "vinni3012 won by resignation"]

1. d4 {[%clk 0:04:58.7]} 1... d5 {[%clk 0:04:58.3]} 2. c4 {[%clk 0:04:58.1]}
2... e6 {[%clk 0:04:57.8]} 3. Nc3 {[%clk 0:04:57.7]} 3... a6 {[%clk 0:04:57.4]}
4. cxd5 {[%clk 0:04:47.9]} 4... exd5 {[%clk 0:04:57.3]} 5. Nf3 {[%clk
0:04:47.1]} 5... c6 {[%clk 0:04:56.9]} 6. Bf4 {[%clk 0:04:46.1]} 6... Bd6 {[%clk
0:04:55.1]} 7. Bxd6 {[%clk 0:04:39.4]} 7... Qxd6 {[%clk 0:04:55]} 8. e4 {[%clk
0:04:08.7]} 8... dxe4 {[%clk 0:04:48.5]} 9. Nxe4 {[%clk 0:04:08.6]} 9... Qe7
{[%clk 0:04:44.6]} 10. Qe2 {[%clk 0:04:06.8]} 10... Be6 {[%clk 0:04:19.6]} 11.
Nc5 {[%clk 0:03:54.6]} 11... b6 {[%clk 0:03:20.6]} 12. Nxe6 {[%clk 0:03:50.7]}
12... Qxe6 {[%clk 0:03:20.5]} 13. Qxe6+ {[%clk 0:03:45.5]} 13... fxe6 {[%clk
0:03:20.4]} 14. Bc4 {[%clk 0:03:36.3]} 14... h6 {[%clk 0:03:01.1]} 15. Bxe6
{[%clk 0:03:32.4]} 15... Nd7 {[%clk 0:02:55.9]} 16. Rc1 {[%clk 0:03:22.4]} 16...
Rc8 {[%clk 0:02:42.3]} 17. Ne5 {[%clk 0:03:17.2]} 17... Ngf6 {[%clk 0:02:40.1]}
18. Rxc6 {[%clk 0:03:07.2]} 18... Ke7 {[%clk 0:02:23.6]} 19. Ng6+ {[%clk
0:02:34.2]} 1-0

[Event "Live Chess"]
[Site "Chess.com"]
[Date "2023.05.20"]
[Round "-"]
[White "Enhard"]
[Black "MaximKhimchenko"]
[Result "1-0"]
[WhiteElo "1385"]
[BlackElo "1365"]
[TimeControl "300"]
[EndTime "9:10:18 PDT"]
[Termination "Enhard won by checkmate"]

1. d4 {[%clk 0:04:58.5]} 1... e5 {[%clk 0:04:57.2]} 2. dxe5 {[%clk 0:04:57.4]}
2... Nc6 {[%clk 0:04:55.1]} 3. Nf3 {[%clk 0:04:56.8]} 3... Qe7 {[%clk
0:04:54.1]} 4. Nc3 {[%clk 0:04:55.7]} 4... Nxe5 {[%clk 0:04:53.2]} 5. Nxe5
{[%clk 0:04:54.5]} 5... Qxe5 {[%clk 0:04:53]} 6. Bd2 {[%clk 0:04:45.6]} 6... Bc5
{[%clk 0:04:51.5]} 7. e3 {[%clk 0:04:44]} 7... Nf6 {[%clk 0:04:50.3]} 8. Be2
{[%clk 0:04:42.6]} 8... d5 {[%clk 0:04:48.8]} 9. Bf3 {[%clk 0:04:38.2]} 9... O-O
{[%clk 0:04:37.4]} 10. O-O {[%clk 0:04:36.6]} 10... Be6 {[%clk 0:04:32.7]} 11.
Re1 {[%clk 0:04:26.6]} 11... Ne4 {[%clk 0:04:21.9]} 12. Nxe4 {[%clk 0:04:10]}
12... dxe4 {[%clk 0:04:21.8]} 13. Bg4 {[%clk 0:04:07.8]} 13... Bxg4 {[%clk
0:04:19.6]} 14. Qxg4 {[%clk 0:04:05.9]} 14... Rad8 {[%clk 0:04:17.1]} 15. Bc3
{[%clk 0:04:04.7]} 15... Bd4 {[%clk 0:03:57]} 16. Bxd4 {[%clk 0:04:03.1]} 16...
Rxd4 {[%clk 0:03:55.6]} 17. exd4 {[%clk 0:04:00.7]} 17... Qxd4 {[%clk
0:03:55.5]} 18. Qxe4 {[%clk 0:03:57.3]} 18... Qxb2 {[%clk 0:03:54]} 19. Rab1
{[%clk 0:03:46.9]} 19... Qxa2 {[%clk 0:03:51.8]} 20. Qxb7 {[%clk 0:03:45.6]}
20... Qxc2 {[%clk 0:03:50.2]} 21. Qxa7 {[%clk 0:03:40.5]} 21... h6 {[%clk
0:03:46]} 22. Rbc1 {[%clk 0:03:39.3]} 22... Qg6 {[%clk 0:03:41.5]} 23. Qxc7
{[%clk 0:03:36.7]} 23... Kh7 {[%clk 0:03:41.4]} 24. Qc2 {[%clk 0:03:33.5]} 24...
f5 {[%clk 0:03:37.6]} 25. h3 {[%clk 0:03:27.8]} 25... Kh8 {[%clk 0:03:29]} 26.
Qc5 {[%clk 0:03:24.8]} 26... Rf6 {[%clk 0:03:24.7]} 27. Qd5 {[%clk 0:03:05.1]}
27... Kh7 {[%clk 0:03:04]} 28. Rc8 {[%clk 0:03:01.9]} 28... Rf7 {[%clk 0:02:56]}
29. Qd8 {[%clk 0:02:54.8]} 29... Qh5 {[%clk 0:02:49.2]} 30. Qg8+ {[%clk
0:02:48.9]} 30... Kg6 {[%clk 0:02:47.6]} 31. Rc6+ {[%clk 0:02:45.6]} 31... Kg5
{[%clk 0:02:44]} 32. Qd8+ {[%clk 0:02:35.6]} 32... Rf6 {[%clk 0:02:41]} 33. Rxf6
{[%clk 0:02:27.4]} 33... gxf6 {[%clk 0:02:40.9]} 34. Qg8+ {[%clk 0:02:24.2]}
34... Kh4 {[%clk 0:02:38.6]} 35. Qg3# {[%clk 0:02:22.1]} 1-0

[Event "Live Chess"]
[Site "Chess.com"]
[Date "2023.05.20"]
[Round "-"]
[White "Jio85"]
[Black "NAZRIZ1977"]
[Result "0-1"]
[WhiteElo "2039"]
[BlackElo "2139"]
[TimeControl "300"]
[EndTime "9:10:21 PDT"]
[Termination "NAZRIZ1977 won by resignation"]

1. e4 {[%clk 0:04:58.8]} 1... c5 {[%clk 0:04:55.7]} 2. Nf3 {[%clk 0:04:58]} 2...
d6 {[%clk 0:04:55]} 3. d4 {[%clk 0:04:57.3]} 3... cxd4 {[%clk 0:04:54.2]} 4.
Nxd4 {[%clk 0:04:56.5]} 4... Nf6 {[%clk 0:04:53.6]} 5. Nc3 {[%clk 0:04:55.9]}
5... g6 {[%clk 0:04:52.7]} 6. Be3 {[%clk 0:04:54.6]} 6... Bg7 {[%clk 0:04:52]}
7. f3 {[%clk 0:04:54.1]} 7... O-O {[%clk 0:04:51.5]} 8. Qd2 {[%clk 0:04:53.5]}
8... Nc6 {[%clk 0:04:51]} 9. O-O-O {[%clk 0:04:52.8]} 9... Bd7 {[%clk
0:04:47.6]} 10. h4 {[%clk 0:04:48.6]} 10... Rc8 {[%clk 0:04:46.5]} 11. Kb1
{[%clk 0:04:47.8]} 11... Ne5 {[%clk 0:04:45.1]} 12. Bh6 {[%clk 0:04:39.2]} 12...
Bxh6 {[%clk 0:04:42.1]} 13. Qxh6 {[%clk 0:04:38.4]} 13... Rxc3 {[%clk
0:04:39.5]} 14. bxc3 {[%clk 0:04:37.7]} 14... Qa5 {[%clk 0:04:39]} 15. h5 {[%clk
0:04:20.4]} 15... Qxc3 {[%clk 0:04:34.1]} 16. hxg6 {[%clk 0:04:16.4]} 16... fxg6
{[%clk 0:04:33.2]} 17. Nb3 {[%clk 0:04:04.5]} 17... a5 {[%clk 0:04:27]} 18. Rh3
{[%clk 0:03:54.2]} 18... Bxh3 {[%clk 0:04:22.9]} 19. Qxh3 {[%clk 0:03:50.5]}
19... a4 {[%clk 0:04:21.8]} 0-1

[Event "Live Chess"]
[Site "Chess.com"]
[Date "2023.05.20"]
[Round "-"]
[White "JohanKjeldahl"]
[Black "Ayush_prahlad_Gupta"]
[Result "0-1"]
[WhiteElo "1785"]
[BlackElo "1801"]
[TimeControl "300"]
[EndTime "9:10:46 PDT"]
[Termination "Ayush_prahlad_Gupta won by checkmate"]

1. c4 {[%clk 0:04:57.5]} 1... e5 {[%clk 0:04:57.4]} 2. Nc3 {[%clk 0:04:56.4]}
2... Nc6 {[%clk 0:04:54.1]} 3. Nf3 {[%clk 0:04:55.3]} 3... Bc5 {[%clk 0:04:51]}
4. e3 {[%clk 0:04:54.2]} 4... d6 {[%clk 0:04:48.9]} 5. Qc2 {[%clk 0:04:52.8]}
5... Nf6 {[%clk 0:04:41.2]} 6. a3 {[%clk 0:04:51.5]} 6... a5 {[%clk 0:04:23.7]}
7. Be2 {[%clk 0:04:47.5]} 7... h6 {[%clk 0:04:19.9]} 8. b3 {[%clk 0:04:43.2]}
8... Bg4 {[%clk 0:04:16.3]} 9. Bb2 {[%clk 0:04:40.7]} 9... O-O {[%clk 0:04:05]}
10. Nd5 {[%clk 0:04:38.6]} 10... Nxd5 {[%clk 0:04:00.9]} 11. cxd5 {[%clk
0:04:36.9]} 11... Ne7 {[%clk 0:03:59]} 12. e4 {[%clk 0:04:32.6]} 12... c6 {[%clk
0:03:52.7]} 13. dxc6 {[%clk 0:04:28.5]} 13... Nxc6 {[%clk 0:03:47.8]} 14. h3
{[%clk 0:04:28.1]} 14... Bxf3 {[%clk 0:03:45.9]} 15. Bxf3 {[%clk 0:04:26.4]}
15... Nd4 {[%clk 0:03:44.4]} 16. Bxd4 {[%clk 0:04:23.8]} 16... Bxd4 {[%clk
0:03:42.7]} 17. Rc1 {[%clk 0:04:21.6]} 17... Qh4 {[%clk 0:03:35.4]} 18. O-O
{[%clk 0:04:18.6]} 18... Qf4 {[%clk 0:03:18.8]} 19. Qd3 {[%clk 0:04:11]} 19...
f5 {[%clk 0:03:14.4]} 20. exf5 {[%clk 0:04:06.2]} 20... Rxf5 {[%clk 0:03:14.3]}
21. Qe4 {[%clk 0:03:49.1]} 21... Qg5 {[%clk 0:02:56]} 22. Qxb7 {[%clk
0:03:43.5]} 22... Raf8 {[%clk 0:02:54.3]} 23. Qd5+ {[%clk 0:03:35.1]} 23... Kh8
{[%clk 0:02:49.8]} 24. Kh1 {[%clk 0:03:24.3]} 24... Qh4 {[%clk 0:02:29.1]} 25.
Kh2 {[%clk 0:03:10.9]} 25... Bxf2 {[%clk 0:02:15.9]} 26. Rc4 {[%clk 0:02:48.1]}
26... Qg3+ {[%clk 0:02:12.7]} 27. Kh1 {[%clk 0:02:46.4]} 27... Rxf3 {[%clk
0:02:08.3]} 28. Rxf2 {[%clk 0:02:38.7]} 28... Rxf2 {[%clk 0:02:00.4]} 29. Rg4
{[%clk 0:02:35.2]} 29... Rf1# {[%clk 0:01:58.2]} 0-1

[Event "Live Chess"]
[Site "Chess.com"]
[Date "2023.05.20"]
[Round "-"]
[White "ossie57"]
[Black "jennybobby44"]
[Result "1-0"]
[WhiteElo "1875"]
[BlackElo "1829"]
[TimeControl "300"]
[EndTime "9:10:54 PDT"]
[Termination "ossie57 won by resignation"]

1. d4 {[%clk 0:04:58.5]} 1... Nf6 {[%clk 0:04:58.8]} 2. Nc3 {[%clk 0:04:57.6]}
2... d5 {[%clk 0:04:57.3]} 3. Bf4 {[%clk 0:04:56.6]} 3... a6 {[%clk 0:04:56.5]}
4. e3 {[%clk 0:04:55.4]} 4... c5 {[%clk 0:04:55.2]} 5. Nf3 {[%clk 0:04:47.2]}
5... Nc6 {[%clk 0:04:54.3]} 6. Ne5 {[%clk 0:04:45]} 6... e6 {[%clk 0:04:43.7]}
7. g4 {[%clk 0:04:41.2]} 7... h6 {[%clk 0:04:40.9]} 8. h4 {[%clk 0:04:39.7]}
8... Nxe5 {[%clk 0:04:34.3]} 9. Bxe5 {[%clk 0:04:38.3]} 9... Bd6 {[%clk
0:04:27]} 10. f4 {[%clk 0:04:28.1]} 10... Bxe5 {[%clk 0:03:51.6]} 11. dxe5
{[%clk 0:04:17.8]} 11... Nd7 {[%clk 0:03:50.3]} 12. Bg2 {[%clk 0:04:10.2]} 12...
b5 {[%clk 0:03:48.5]} 13. g5 {[%clk 0:03:55]} 13... hxg5 {[%clk 0:03:45.9]} 14.
hxg5 {[%clk 0:03:54.1]} 14... Rxh1+ {[%clk 0:03:45]} 15. Bxh1 {[%clk 0:03:54]}
15... Bb7 {[%clk 0:03:41.7]} 16. Qh5 {[%clk 0:03:52.1]} 16... Nf8 {[%clk
0:03:23]} 17. O-O-O {[%clk 0:03:42.1]} 17... b4 {[%clk 0:03:05.9]} 18. Ne4
{[%clk 0:03:38.2]} 18... dxe4 {[%clk 0:02:17.8]} 19. Rxd8+ {[%clk 0:03:35.4]}
19... Rxd8 {[%clk 0:02:17.3]} 20. Qe2 {[%clk 0:03:12.8]} 20... Nd7 {[%clk
0:02:01.7]} 21. Qc4 {[%clk 0:03:11]} 21... Rc8 {[%clk 0:01:56.3]} 22. Bxe4
{[%clk 0:03:04.2]} 22... Bxe4 {[%clk 0:01:53.4]} 23. Qxe4 {[%clk 0:03:03]} 23...
g6 {[%clk 0:01:52.6]} 24. Qb7 {[%clk 0:02:59.8]} 24... Kd8 {[%clk 0:01:42.4]}
25. Qxa6 {[%clk 0:02:57.1]} 25... c4 {[%clk 0:01:39]} 26. Qa5+ {[%clk
0:02:54.8]} 26... Ke8 {[%clk 0:01:36.8]} 27. Qxb4 {[%clk 0:02:53.6]} 1-0

[Event "Live Chess"]
[Site "Chess.com"]
[Date "2023.05.20"]
[Round "-"]
[White "MrDodgy"]
[Black "Duke_of_Bebington"]
[Result "1-0"]
[WhiteElo "2322"]
[BlackElo "1562"]
[TimeControl "300"]
[EndTime "9:11:13 PDT"]
[Termination "MrDodgy won by resignation"]

1. e4 {[%clk 0:04:57.9]} 1... e5 {[%clk 0:04:58.6]} 2. Nf3 {[%clk 0:04:56]} 2...
Nf6 {[%clk 0:04:56.1]} 3. d4 {[%clk 0:04:53.4]} 3... Nxe4 {[%clk 0:04:53.1]} 4.
dxe5 {[%clk 0:04:51.8]} 4... d5 {[%clk 0:04:51.4]} 5. exd6 {[%clk 0:04:50.2]}
5... Nxd6 {[%clk 0:04:50.2]} 6. Bd3 {[%clk 0:04:48.9]} 6... Be7 {[%clk
0:04:42.9]} 7. Nc3 {[%clk 0:04:46.2]} 7... Be6 {[%clk 0:04:28.9]} 8. Qe2 {[%clk
0:04:42.5]} 8... a6 {[%clk 0:04:25.7]} 9. Bf4 {[%clk 0:04:40.5]} 9... Nc6 {[%clk
0:04:19.9]} 10. O-O-O {[%clk 0:04:38]} 10... O-O {[%clk 0:03:57.1]} 11. h4
{[%clk 0:04:36]} 11... Bg4 {[%clk 0:03:52.8]} 12. Bxh7+ {[%clk 0:04:29.5]} 12...
Kxh7 {[%clk 0:03:50.6]} 13. Ng5+ {[%clk 0:04:28.7]} 13... Kg8 {[%clk 0:03:30.2]}
14. Qxg4 {[%clk 0:04:26]} 14... Re8 {[%clk 0:03:06.1]} 15. Qh5 {[%clk
0:04:22.5]} 15... Bxg5 {[%clk 0:03:02.6]} 16. hxg5 {[%clk 0:04:18.3]} 16... Kf8
{[%clk 0:02:57.6]} 17. Nd5 {[%clk 0:04:16.3]} 17... f6 {[%clk 0:02:41.4]} 18. g6
{[%clk 0:04:14.5]} 1-0

[Event "Live Chess"]
[Site "Chess.com"]
[Date "2023.05.20"]
[Round "-"]
[White "apl_trainer"]
[Black "wot-not"]
[Result "1-0"]
[WhiteElo "1489"]
[BlackElo "1452"]
[TimeControl "300"]
[EndTime "9:11:18 PDT"]
[Termination "apl_trainer won by resignation"]

1. d4 {[%clk 0:04:58.5]} 1... Nf6 {[%clk 0:04:58.1]} 2. c4 {[%clk 0:04:57.2]}
2... c5 {[%clk 0:04:57]} 3. d5 {[%clk 0:04:55.7]} 3... d6 {[%clk 0:04:56.5]} 4.
Nc3 {[%clk 0:04:53.9]} 4... e5 {[%clk 0:04:56.1]} 5. e4 {[%clk 0:04:51.9]} 5...
Be7 {[%clk 0:04:55.3]} 6. Nf3 {[%clk 0:04:50.1]} 6... Nbd7 {[%clk 0:04:54.5]} 7.
h3 {[%clk 0:04:48.3]} 7... Nf8 {[%clk 0:04:53.5]} 8. Bd3 {[%clk 0:04:45.9]} 8...
Ng6 {[%clk 0:04:52.8]} 9. g3 {[%clk 0:04:44.6]} 9... O-O {[%clk 0:04:51.6]} 10.
h4 {[%clk 0:04:41.5]} 10... Re8 {[%clk 0:04:28.2]} 11. h5 {[%clk 0:04:36]} 11...
Nf8 {[%clk 0:04:27.2]} 12. Nh4 {[%clk 0:04:27.1]} 12... h6 {[%clk 0:04:17.8]}
13. Be2 {[%clk 0:04:23.5]} 13... N6h7 {[%clk 0:04:10.1]} 14. Be3 {[%clk
0:04:18.6]} 14... Bg5 {[%clk 0:04:08.9]} 15. Qd2 {[%clk 0:04:16.1]} 15... Bxe3
{[%clk 0:04:07.5]} 16. Qxe3 {[%clk 0:04:14.3]} 16... Qg5 {[%clk 0:04:07.1]} 17.
Qxg5 {[%clk 0:03:58.1]} 17... Nxg5 {[%clk 0:04:06.2]} 18. f3 {[%clk 0:03:53.7]}
18... a6 {[%clk 0:04:03.3]} 19. Kf2 {[%clk 0:03:51.5]} 19... Bd7 {[%clk
0:03:47.7]} 20. a4 {[%clk 0:03:49.6]} 20... Rab8 {[%clk 0:03:46.8]} 21. Bd3
{[%clk 0:03:43.8]} 21... Bc8 {[%clk 0:02:52.6]} 22. Rhb1 {[%clk 0:03:37.1]}
22... Nd7 {[%clk 0:02:47.7]} 23. Nf5 {[%clk 0:03:28.5]} 23... g6 {[%clk
0:02:32.8]} 24. Nxd6 {[%clk 0:03:23.9]} 24... Rf8 {[%clk 0:02:31]} 25. Rh1
{[%clk 0:03:12.1]} 25... Nb6 {[%clk 0:02:05.5]} 26. f4 {[%clk 0:02:54.3]} 26...
exf4 {[%clk 0:02:00.8]} 27. gxf4 {[%clk 0:02:53]} 27... Nh3+ {[%clk 0:01:56.7]}
28. Kg3 {[%clk 0:02:48.3]} 28... gxh5 {[%clk 0:01:48.2]} 29. Nxc8 {[%clk
0:02:43.9]} 29... Rbxc8 {[%clk 0:01:45.6]} 30. Rxh3 {[%clk 0:02:41.8]} 30... Kh7
{[%clk 0:01:45.2]} 31. Rxh5 {[%clk 0:02:37.4]} 31... Rg8+ {[%clk 0:01:44.7]} 32.
Kf3 {[%clk 0:02:35.4]} 32... Rg7 {[%clk 0:01:39.4]} 33. e5+ {[%clk 0:02:32.7]}
33... Kg8 {[%clk 0:01:35.2]} 34. Rxh6 {[%clk 0:02:30.9]} 34... Kf8 {[%clk
0:01:34]} 35. Rxb6 {[%clk 0:02:28.5]} 1-0

[Event "Live Chess"]
[Site "Chess.com"]
[Date "2023.05.20"]
[Round "-"]
[White "Ian-Morley"]
[Black "KING_BOBBB"]
[Result "1-0"]
[WhiteElo "1045"]
[BlackElo "521"]
[TimeControl "300"]
[EndTime "9:11:30 PDT"]
[Termination "Ian-Morley won by checkmate"]

1. e4 {[%clk 0:04:57.6]} 1... d5 {[%clk 0:04:58.1]} 2. exd5 {[%clk 0:04:46.9]}
2... Qxd5 {[%clk 0:04:58]} 3. Nc3 {[%clk 0:04:46]} 3... Qa5 {[%clk 0:04:57.2]}
4. Qe2 {[%clk 0:04:41.4]} 4... c6 {[%clk 0:04:53]} 5. d4 {[%clk 0:04:37.5]} 5...
Bf5 {[%clk 0:04:51]} 6. Bd2 {[%clk 0:04:27.7]} 6... e6 {[%clk 0:04:48.4]} 7. Ne4
{[%clk 0:04:22.6]} 7... Qb6 {[%clk 0:04:41.3]} 8. c3 {[%clk 0:04:14.1]} 8...
Qxb2 {[%clk 0:04:39.5]} 9. Qd1 {[%clk 0:04:08.5]} 9... Bxe4 {[%clk 0:04:38]} 10.
Rb1 {[%clk 0:04:07.3]} 10... Qxa2 {[%clk 0:04:34.6]} 11. Rxb7 {[%clk 0:04:05.6]}
11... Bc2 {[%clk 0:04:26.9]} 12. Qc1 {[%clk 0:03:55.2]} 12... Ba3 {[%clk
0:04:22.1]} 13. Bc4 {[%clk 0:03:30.8]} 13... Qxc4 {[%clk 0:04:02.3]} 14. Qxa3
{[%clk 0:03:25]} 14... Nf6 {[%clk 0:03:31.1]} 15. Qe7# {[%clk 0:03:19.7]} 1-0

[Event "Live Chess"]
[Site "Chess.com"]
[Date "2023.05.20"]
[Round "-"]
[White "risinghelios"]
[Black "Olisingapore"]
[Result "1/2-1/2"]
[WhiteElo "1943"]
[BlackElo "1955"]
[TimeControl "300"]
[EndTime "9:11:32 PDT"]
[Termination "Game drawn by agreement"]

1. e4 {[%clk 0:04:59.4]} 1... c5 {[%clk 0:04:58.8]} 2. c3 {[%clk 0:04:58.6]}
2... Nf6 {[%clk 0:04:57.4]} 3. e5 {[%clk 0:04:57.9]} 3... Nd5 {[%clk 0:04:57.1]}
4. d4 {[%clk 0:04:57.6]} 4... cxd4 {[%clk 0:04:57]} 5. cxd4 {[%clk 0:04:57.1]}
5... Nc6 {[%clk 0:04:56.7]} 6. Nf3 {[%clk 0:04:56.5]} 6... d6 {[%clk 0:04:53.9]}
7. exd6 {[%clk 0:04:54.7]} 7... Qxd6 {[%clk 0:04:51.8]} 8. Bc4 {[%clk
0:04:54.2]} 8... Nb6 {[%clk 0:04:49.1]} 9. Bb3 {[%clk 0:04:53]} 9... Bg4 {[%clk
0:04:46]} 10. O-O {[%clk 0:04:51.9]} 10... Na5 {[%clk 0:04:44.1]} 11. Bxf7+
{[%clk 0:04:46.6]} 11... Kxf7 {[%clk 0:04:38.9]} 12. Ng5+ {[%clk 0:04:45.5]}
12... Kg8 {[%clk 0:04:09.9]} 13. Qxg4 {[%clk 0:04:44.2]} 13... Nc6 {[%clk
0:04:06.5]} 14. Bf4 {[%clk 0:04:42.7]} 14... Qg6 {[%clk 0:04:01.5]} 15. h4
{[%clk 0:04:36.5]} 15... Nxd4 {[%clk 0:03:57.2]} 16. h5 {[%clk 0:04:33.7]} 16...
Qf5 {[%clk 0:03:47.3]} 17. Qxf5 {[%clk 0:04:20.1]} 17... Nxf5 {[%clk 0:03:47.2]}
18. Nc3 {[%clk 0:04:18.6]} 18... g6 {[%clk 0:03:44.3]} 19. hxg6 {[%clk
0:04:15.8]} 19... hxg6 {[%clk 0:03:42.6]} 20. Rad1 {[%clk 0:04:12]} 20... Bg7
{[%clk 0:03:40.7]} 21. Rfe1 {[%clk 0:04:08.9]} 21... Bf6 {[%clk 0:03:37.8]} 22.
Nce4 {[%clk 0:04:07.6]} 22... Bxb2 {[%clk 0:03:28.2]} 23. Nc5 {[%clk 0:04:01.6]}
23... Rh4 {[%clk 0:03:06]} 24. g3 {[%clk 0:03:53.9]} 24... Rh8 {[%clk
0:03:00.7]} 25. Nd7 {[%clk 0:03:46.6]} 25... Nxd7 {[%clk 0:02:53.2]} 26. Rxd7
{[%clk 0:03:46.5]} 26... Bf6 {[%clk 0:02:50.2]} 27. Rxb7 {[%clk 0:03:45.5]}
27... Nd4 {[%clk 0:02:41]} 28. Kg2 {[%clk 0:03:41.9]} 28... Rh5 {[%clk
0:02:19.1]} 29. Ne6 {[%clk 0:03:38.4]} 29... Nxe6 {[%clk 0:02:12.9]} 30. Rxe6
{[%clk 0:03:38.3]} 30... Ra5 {[%clk 0:02:09.4]} 31. Rc7 {[%clk 0:03:26.5]} 31...
Rxa2 {[%clk 0:02:04.9]} 32. Be5 {[%clk 0:03:26]} 32... Bxe5 {[%clk 0:01:27.9]}
33. Rxe5 {[%clk 0:03:25.9]} 33... Re8 {[%clk 0:01:26.2]} 34. Rexe7 {[%clk
0:03:14.7]} 34... Rxe7 {[%clk 0:01:23.6]} 35. Rxe7 {[%clk 0:03:14.6]} 35... a5
{[%clk 0:01:22.3]} 36. Ra7 {[%clk 0:03:13.6]} 36... a4 {[%clk 0:01:05.5]} 37.
Kh3 {[%clk 0:03:10.3]} 37... Rxf2 {[%clk 0:01:01.9]} 38. Rxa4 {[%clk 0:03:09.2]}
38... Kg7 {[%clk 0:00:57]} 39. Ra7+ {[%clk 0:03:07.6]} 39... Kh6 {[%clk
0:00:55.9]} 40. g4 {[%clk 0:03:07.5]} 40... Rf3+ {[%clk 0:00:53.2]} 41. Kg2
{[%clk 0:03:05.6]} 41... Rc3 {[%clk 0:00:51.5]} 42. Ra6 {[%clk 0:03:02.6]} 42...
Rc5 {[%clk 0:00:48.4]} 43. Rb6 {[%clk 0:02:59.7]} 1/2-1/2

[Event "Live Chess"]
[Site "Chess.com"]
[Date "2023.05.20"]
[Round "-"]
[White "McSlash1"]
[Black "white59867"]
[Result "1-0"]
[WhiteElo "2079"]
[BlackElo "100"]
[TimeControl "300"]
[EndTime "9:11:41 PDT"]
[Termination "McSlash1 won by checkmate"]

1. e4 {[%clk 0:04:59.3]} 1... e5 {[%clk 0:04:57.2]} 2. Nf3 {[%clk 0:04:58.3]}
2... Nf6 {[%clk 0:04:54.8]} 3. Nxe5 {[%clk 0:04:57.4]} 3... Nxe4 {[%clk
0:04:52.6]} 4. Qe2 {[%clk 0:04:55.8]} 4... Qe7 {[%clk 0:04:49.3]} 5. Qxe4 {[%clk
0:04:54.3]} 5... g6 {[%clk 0:04:41.4]} 6. Qe2 {[%clk 0:04:44.9]} 6... Bg7 {[%clk
0:04:37.1]} 7. d4 {[%clk 0:04:43.1]} 7... d6 {[%clk 0:04:32.8]} 8. Nf3 {[%clk
0:04:42]} 8... Bf5 {[%clk 0:04:25.2]} 9. Qxe7+ {[%clk 0:04:39]} 9... Kxe7 {[%clk
0:04:19.1]} 10. Na3 {[%clk 0:04:38.9]} 10... Re8 {[%clk 0:03:55.2]} 11. Be3
{[%clk 0:04:36.9]} 11... Kf8 {[%clk 0:03:53.6]} 12. Be2 {[%clk 0:04:35.5]} 12...
c5 {[%clk 0:03:21]} 13. Nb5 {[%clk 0:04:34.1]} 13... cxd4 {[%clk 0:03:10.6]} 14.
Bxd4 {[%clk 0:04:34]} 14... Bxd4 {[%clk 0:03:05.8]} 15. Nfxd4 {[%clk 0:04:33.9]}
15... h5 {[%clk 0:02:59]} 16. Nc7 {[%clk 0:04:31.6]} 16... Bg4 {[%clk
0:02:57.2]} 17. f3 {[%clk 0:04:29.8]} 17... Nc6 {[%clk 0:02:42.8]} 18. Nxa8
{[%clk 0:04:26.6]} 18... Rxa8 {[%clk 0:02:40.9]} 19. Nxc6 {[%clk 0:04:26.1]}
19... Re8 {[%clk 0:02:38.9]} 20. fxg4 {[%clk 0:04:25.7]} 20... hxg4 {[%clk
0:02:36]} 21. Kf2 {[%clk 0:04:24.1]} 21... g3+ {[%clk 0:02:31.4]} 22. hxg3
{[%clk 0:04:23]} 22... d5 {[%clk 0:02:29]} 23. Rh8+ {[%clk 0:04:17.4]} 23... Kg7
{[%clk 0:02:24.4]} 24. Rxe8 {[%clk 0:04:17.3]} 24... Kh6 {[%clk 0:02:21.4]} 25.
Re7 {[%clk 0:04:14.2]} 25... g5 {[%clk 0:02:20.7]} 26. Ne5 {[%clk 0:04:12]}
26... Kg7 {[%clk 0:02:15.2]} 27. Rxf7+ {[%clk 0:04:10.5]} 27... Kh6 {[%clk
0:02:13.1]} 28. Bd3 {[%clk 0:04:09.9]} 28... Kh5 {[%clk 0:02:10.7]} 29. Rh7#
{[%clk 0:04:07.8]} 1-0

[Event "Live Chess"]
[Site "Chess.com"]
[Date "2023.05.20"]
[Round "-"]
[White "KeithArkell"]
[Black "wadsy27"]
[Result "1-0"]
[WhiteElo "2608"]
[BlackElo "2584"]
[TimeControl "300"]
[EndTime "9:11:43 PDT"]
[Termination "KeithArkell won by resignation"]

1. d4 {[%clk 0:04:58.4]} 1... d5 {[%clk 0:04:57.9]} 2. Nf3 {[%clk 0:04:57.5]}
2... Nf6 {[%clk 0:04:56.9]} 3. c4 {[%clk 0:04:56.8]} 3... c6 {[%clk 0:04:56.1]}
4. Nc3 {[%clk 0:04:53.8]} 4... dxc4 {[%clk 0:04:51.7]} 5. a4 {[%clk 0:04:52.3]}
5... Bf5 {[%clk 0:04:50.6]} 6. Nh4 {[%clk 0:04:51.3]} 6... e6 {[%clk 0:04:49.2]}
7. Nxf5 {[%clk 0:04:50.3]} 7... exf5 {[%clk 0:04:48.5]} 8. Bg5 {[%clk
0:04:49.9]} 8... Nbd7 {[%clk 0:04:45.3]} 9. e3 {[%clk 0:04:49]} 9... Bb4 {[%clk
0:04:38.6]} 10. Bxf6 {[%clk 0:04:42.9]} 10... Nxf6 {[%clk 0:04:36.4]} 11. Bxc4
{[%clk 0:04:42]} 11... Qa5 {[%clk 0:04:33.3]} 12. Qb3 {[%clk 0:04:40.6]} 12...
O-O {[%clk 0:04:31.1]} 13. O-O {[%clk 0:04:39.4]} 13... Rab8 {[%clk 0:04:10.4]}
14. Rfd1 {[%clk 0:04:36.3]} 14... Bd6 {[%clk 0:03:40.5]} 15. d5 {[%clk
0:04:29.3]} 15... Qc7 {[%clk 0:03:38.3]} 16. g3 {[%clk 0:04:26.8]} 16... h5
{[%clk 0:03:08]} 17. dxc6 {[%clk 0:04:20.8]} 17... bxc6 {[%clk 0:03:06.9]} 18.
Qc2 {[%clk 0:04:19.9]} 18... g6 {[%clk 0:02:59.5]} 19. Be2 {[%clk 0:03:58.1]}
19... Be5 {[%clk 0:02:52.2]} 20. Bf3 {[%clk 0:03:55.5]} 20... h4 {[%clk
0:02:45.1]} 21. Kg2 {[%clk 0:03:49.8]} 21... Kg7 {[%clk 0:02:34.6]} 22. Rac1
{[%clk 0:03:44.2]} 22... Rb4 {[%clk 0:02:19.8]} 23. b3 {[%clk 0:03:33.1]} 23...
Rfb8 {[%clk 0:02:16.2]} 24. Ne2 {[%clk 0:03:32.1]} 24... hxg3 {[%clk 0:01:52.3]}
25. hxg3 {[%clk 0:03:29.3]} 25... Rxb3 {[%clk 0:01:50.8]} 26. Qxc6 {[%clk
0:03:26.9]} 26... Qxc6 {[%clk 0:01:49.6]} 27. Rxc6 {[%clk 0:03:23.6]} 27... R8b6
{[%clk 0:01:41.5]} 28. Rxb6 {[%clk 0:03:21.5]} 28... axb6 {[%clk 0:01:40.2]} 29.
Rd2 {[%clk 0:03:12.5]} 29... Ra3 {[%clk 0:01:37.8]} 30. Bc6 {[%clk 0:03:11.3]}
30... Ne4 {[%clk 0:01:28.1]} 31. Rc2 {[%clk 0:03:05]} 31... Nc5 {[%clk
0:01:20.6]} 32. Rc1 {[%clk 0:02:36.2]} 32... Nxa4 {[%clk 0:01:15.2]} 33. Rb1
{[%clk 0:02:33.3]} 33... Bc7 {[%clk 0:01:07.5]} 34. Nd4 {[%clk 0:02:29.5]} 34...
Nc5 {[%clk 0:01:04.3]} 35. Nb5 {[%clk 0:02:27]} 35... Be5 {[%clk 0:01:02.2]} 36.
Nxa3 {[%clk 0:02:25]} 1-0